bitfinex/quotes_ETHUSD_20251218
["timestamp","ask_amount","ask_price","bid_price","bid_amount"]
[1766074634068,0.6966,2955.2,2954.2,0.547]
[1766074634268,0.002,2955.3,2954.5,1.5889]
[1766074634494,0.002,2955.3,2954.2,0.547]
[1766074634665,0.002,2955.3,2954.5,1.1728]
[1766074634995,0.002,2955.3,2954.3,1.1728]
[1766074635195,4.07537767,2956.1,2954.7,1.1728]
[1766074635394,0.6925,2956.0,2954.8,1.7198]
[1766074635582,0.6925,2956.0,2954.8,3.3087]
[1766074635785,0.6925,2955.9,2954.8,3.3087]
[1766074635991,0.6925,2955.9,2954.8,2.1359]
[1766074636187,0.002,2955.3,2955.0,2.7617]
[1766074636391,3.38288092,2956.1,2955.0,2.7617]
[1766074636598,0.46438023,2956.0,2955.1,1.1728]
[1766074636891,3.38288092,2956.1,2955.1,1.1728]
[1766074637095,0.46438023,2956.1,2954.9,0.21359]
[1766074637299,0.6886,2955.8,2954.7,3.3087]
[1766074637495,0.6886,2955.7,2954.4,0.17198]
[1766074637696,0.6886,2955.7,2954.3,2.7617]
[1766074637999,0.6886,2955.4,2953.6,1.5889]
[1766074638205,0.6886,2955.4,2952.5,0.001]
[1766074638206,0.09414929,2953.5,2952.5,0.001]
[1766074638403,0.46438023,2953.2,2951.8,1.1738]
[1766074638604,1.50985447,2953.1,2951.8,0.001]
[1766074638970,0.09414929,2953.0,2951.8,0.001]
[1766074639297,0.46438023,2952.8,2951.8,0.001]
[1766074639899,0.46438023,2952.8,2951.8,2.7627]
[1766074640072,0.548,2952.7,2952.1,1.5889]
[1766074640274,6.7725682,2953.1,2952.3,1.5889]
[1766074640474,1.22525682,2953.0,2952.3,1.5889]
[1766074641073,0.548,2953.0,2952.3,2.7617]
[1766074641809,3.38501117,2954.2,2952.3,6.77436961]
[1766074642011,0.548,2954.1,2952.6,2.7617]
[1766074642226,1.01238023,2954.1,2952.6,2.7617]
[1766074642426,1.10652952,2954.1,2952.6,2.7617]
[1766074642582,1.1261563,2954.0,2952.6,2.7617]
[1766074642782,0.002,2953.3,2952.6,2.7617]
[1766074643815,1.1261563,2954.0,2952.9,1.5889]
[1766074644019,0.548,2953.9,2953.1,2.7617]
[1766074645209,10.1543726,2954.4,2953.1,2.7617]
[1766074645408,3.38478202,2954.4,2952.6,7.32165267]
[1766074645712,0.002,2954.5,2952.9,1.5889]
[1766074646004,0.46638023,2954.5,2953.3,1.5889]
[1766074646207,0.7235486,2954.4,2953.3,2.7617]
[1766074646407,1.2715486,2954.4,2953.3,2.7617]
[1766074646811,0.7235486,2954.4,2953.2,1.1728]
[1766074647011,0.7235486,2954.4,2953.0,0.548]
[1766074647012,0.7235486,2954.4,2953.5,1.5889]
[1766074647510,0.548,2954.3,2953.7,2.7617]
[1766074647714,0.002,2954.5,2953.8,1.1728]
[1766074648010,0.548,2955.0,2954.3,2.7617]
[1766074648209,0.09614929,2955.7,2954.3,2.7617]
[1766074648210,6.76782384,2955.2,2954.3,2.7617]
[1766074648411,0.548,2955.0,2953.7,7.04733523]
[1766074648593,0.548,2955.0,2953.8,1.5889]
[1766074648794,0.548,2955.0,2954.2,1.5889]
[1766074649004,0.548,2955.0,2954.2,1.1728]
[1766074649198,3.93191192,2955.2,2954.4,2.7617]
[1766074649413,7.31582384,2955.2,2954.0,0.548]
[1766074649619,0.548,2955.1,2954.0,0.548]
[1766074649794,0.73156657,2955.1,2954.0,0.548]
[1766074649999,0.548,2955.0,2954.3,2.7617]
[1766074650195,0.002,2954.4,2954.3,2.7617]
[1766074650692,0.46438023,2955.2,2954.0,0.548]
[1766074650884,0.548,2955.3,2954.0,7.31843004]
[1766074651081,0.548,2955.3,2954.1,0.731843]
[1766074651288,0.548,2955.3,2954.5,1.1728]
[1766074651522,3.3855147,2955.6,2954.7,1.1728]
[1766074651725,0.547,2955.5,2954.7,2.7617]
[1766074651893,7.31405992,2955.5,2954.3,2.7617]
[1766074652098,0.73160599,2955.4,2954.3,2.7617]
[1766074652294,0.73160599,2955.4,2954.1,3.38506657]
[1766074652484,0.73160599,2955.4,2954.0,0.548]
[1766074652485,0.002,2955.6,2954.2,1.5889]
[1766074652821,0.002,2955.7,2955.2,2.7617]
[1766074653526,0.002,2956.5,2955.2,1.1728]
[1766074653732,0.547,2956.4,2955.6,2.7617]
[1766074654525,0.547,2956.4,2955.2,0.547]
[1766074654526,0.547,2956.4,2955.2,1.5889]
[1766074654731,0.547,2956.4,2954.9,0.547]
[1766074654732,0.46558023,2956.5,2955.1,1.1728]
[1766074654903,1.27001071,2956.4,2955.7,1.1728]
[1766074655095,0.547,2956.4,2955.7,2.7617]
[1766074655723,1.01138023,2956.4,2955.7,2.7617]
[1766074655917,0.46438023,2956.3,2955.3,0.547]
[1766074656208,0.46438023,2956.3,2954.8,2.7617]
[1766074656609,0.46438023,2956.3,2954.8,0.46438023]
[1766074656811,1.1158863,2956.2,2955.0,1.5889]
[1766074657027,1.1158863,2956.2,2955.0,2.7617]
[1766074657240,1.1158863,2956.2,2954.9,3.38416213]
[1766074657426,0.547,2956.3,2954.7,0.86988423]
[1766074657625,0.547,2956.3,2954.8,0.405504]
[1766074657798,0.547,2956.3,2955.0,2.7617]
[1766074657999,0.46558023,2956.5,2955.1,0.547]
[1766074658207,0.46558023,2956.5,2955.2,2.7617]
[1766074658208,0.547,2956.2,2955.2,2.7617]
[1766074658404,0.46438023,2956.4,2955.2,0.33087]
[1766074658632,0.549,2956.3,2955.2,2.7617]
[1766074658834,0.549,2956.3,2955.1,0.547]
[1766074659531,0.549,2956.3,2954.8,3.22608023]
[1766074659704,0.002,2956.3,2955.0,3.38409475]
[1766074659902,0.002,2956.3,2955.4,1.5889]
[1766074660127,0.38700433,2956.3,2955.0,6.7681895]
[1766074660332,0.38700433,2956.3,2955.6,1.5889]
[1766074660333,0.002,2956.3,2955.6,1.5889]
[1766074660528,0.002,2956.3,2955.7,2.7617]
[1766074661754,0.002,2956.3,2955.4,3.38363673]
[1766074661926,0.0012,2956.5,2955.4,6.76727346]
[1766074662128,0.0012,2956.5,2955.8,1.5889]
[1766074662457,0.0012,2956.5,2956.0,1.5889]
[1766074662751,0.33974639,2956.5,2955.5,1.6332]
[1766074662960,0.547,2956.4,2955.5,1.6332]
[1766074663450,0.547,2956.4,2955.0,1.6332]
[1766074663954,0.46438023,2956.2,2954.8,1.1938]
[1766074664254,0.46438023,2956.2,2954.6,1.6332]
[1766074664255,0.09414929,2956.1,2954.6,1.6332]
[1766074664470,0.09414929,2956.1,2954.6,2.827]
[1766074665051,0.547,2956.0,2954.8,1.1938]
[1766074665225,0.46438023,2956.0,2954.9,2.827]
[1766074665421,0.546,2955.9,2955.3,0.001]
[1766074666059,0.46438023,2955.8,2955.3,0.001]
[1766074666566,0.546,2955.7,2954.3,0.547]
[1766074666869,0.546,2955.7,2954.5,2.827]
[1766074667532,0.546,2955.7,2954.1,0.46538023]
[1766074667843,0.546,2955.6,2954.1,0.001]
[1766074668049,6.76704448,2955.5,2954.2,2.827]
[1766074668253,6.76704448,2955.5,2954.1,0.001]
[1766074668552,0.73130445,2955.4,2954.1,0.18912645]
[1766074668755,0.546,2955.3,2954.6,1.6332]
[1766074668961,0.73130445,2955.4,2954.4,1.6332]
[1766074669129,0.73130445,2955.4,2954.6,2.827]
[1766074669330,1.27730445,2955.4,2954.5,1.6332]
[1766074669535,0.546,2955.5,2954.9,1.6332]
[1766074669760,0.46438023,2955.8,2954.4,0.546]
[1766074669963,2.44943162,2956.1,2955.0,1.1938]
[1766074670176,3.38256688,2956.4,2955.0,0.405504]
[1766074670465,0.002,2956.7,2955.6,2.827]
[1766074670466,0.546,2956.3,2955.6,2.827]
[1766074671159,7.22939127,2956.4,2955.6,2.827]
[1766074671160,0.46438023,2956.4,2955.6,2.827]
[1766074671454,0.546,2956.4,2955.6,2.827]
[1766074671660,1.01038023,2956.4,2955.6,2.827]
[1766074671830,1.48363236,2956.4,2955.6,2.827]
[1766074672232,0.546,2956.3,2955.6,2.827]
[1766074672524,0.546,2956.3,2955.0,3.232504]
[1766074672731,0.546,2956.3,2954.9,1.1938]
[1766074672965,0.546,2956.3,2955.0,2.827]
[1766074673126,1.11579513,2956.2,2955.0,2.827]
[1766074673555,1.11579513,2956.2,2955.1,0.46438023]
[1766074673759,1.11579513,2956.2,2955.2,2.827]
[1766074673964,1.11579513,2956.2,2955.3,0.001]
[1766074674168,6.76567098,2956.1,2954.8,2.827]
[1766074674465,1.25252684,2956.0,2954.8,2.827]
[1766074675352,8.72447043,2955.9,2954.5,0.46438023]
[1766074675528,1.01038023,2955.8,2954.3,1.01038023]
[1766074675734,1.01038023,2955.8,2954.5,0.46438023]
[1766074675963,0.97348507,2955.7,2954.4,0.46438023]
[1766074676140,4.35683005,2955.7,2954.6,1.1938]
[1766074676346,4.35683005,2955.7,2954.9,1.6332]
[1766074676571,0.97348507,2955.7,2954.5,3.84900994]
[1766074676737,0.97348507,2955.7,2954.7,1.1938]
[1766074676940,0.19838653,2955.6,2954.9,1.1938]
[1766074677449,0.19838653,2955.6,2954.5,3.38465841]
[1766074677762,0.19838653,2955.6,2954.4,3.84910707]
[1766074677966,0.19838653,2955.6,2954.5,1.6332]
[1766074678131,3.58187307,2955.6,2954.7,1.6332]
[1766074678331,3.58187307,2955.6,2954.4,0.46438023]
[1766074678561,3.58187307,2955.6,2954.5,3.82418295]
[1766074678562,0.19838653,2955.6,2954.5,3.82418295]
[1766074678767,0.19838653,2955.6,2954.5,0.43952117]
[1766074678968,0.19758653,2955.6,2954.8,2.827]
[1766074679472,6.96446551,2955.6,2954.4,2.827]
[1766074679670,3.58102602,2955.6,2954.3,0.546]
[1766074679974,6.96446551,2955.6,2954.3,3.373]
[1766074680181,3.38363673,2955.4,2954.4,2.827]
[1766074680385,0.545,2955.3,2954.3,0.546]
[1766074680539,0.545,2955.3,2954.4,2.9322]
[1766074680745,0.545,2955.3,2954.4,0.001]
[1766074681275,1.00938023,2955.3,2954.4,0.001]
[1766074681478,1.65011241,2955.2,2954.4,0.001]
[1766074682243,0.46438023,2955.1,2954.4,0.001]
[1766074682585,0.545,2955.1,2954.7,2.9312]
[1766074682875,8.72447043,2955.0,2954.1,0.001]
[1766074683094,0.46438023,2954.9,2953.8,2.9312]
[1766074683241,0.46438023,2954.5,2953.2,0.546]
[1766074683551,0.545,2954.4,2953.3,2.9312]
[1766074683774,0.545,2954.4,2953.2,0.001]
[1766074684098,0.545,2954.4,2953.3,2.9312]
[1766074684295,0.46438023,2954.3,2953.2,0.001]
[1766074684464,0.90380199,2954.3,2953.2,0.001]
[1766074684792,0.545,2954.2,2953.4,2.9312]
[1766074685196,0.545,2954.2,2953.3,2.9312]
[1766074685696,0.545,2954.2,2953.2,0.001]
[1766074686290,3.38512575,2954.1,2953.2,0.001]
[1766074686494,0.7315162,2954.0,2953.2,0.001]
[1766074686697,1.19589643,2954.0,2953.2,0.001]
[1766074687466,0.545,2953.9,2953.2,0.001]
[1766074687861,0.7315162,2954.0,2953.2,0.001]
[1766074688060,0.09414929,2954.6,2953.2,0.001]
[1766074688061,0.46438023,2954.4,2953.3,1.1974]
[1766074688262,0.545,2954.3,2953.3,2.9312]
[1766074688491,0.545,2954.3,2953.2,3.38711223]
[1766074688681,0.545,2954.3,2953.2,0.001]
[1766074688884,0.545,2954.3,2953.4,1.1974]
[1766074689287,0.545,2954.3,2953.2,0.001]
[1766074689288,0.90380022,2954.2,2953.2,0.001]
[1766074689494,0.90380022,2954.2,2952.9,0.001]
[1766074689669,0.09614929,2954.1,2952.9,0.001]
[1766074690167,0.002,2954.1,2952.9,0.001]
[1766074690367,0.46438023,2954.0,2952.9,0.001]
[1766074690702,0.3851506,2953.9,2952.9,0.001]
[1766074690906,0.546,2953.9,2953.0,2.9312]
[1766074691074,0.546,2953.9,2952.9,0.001]
[1766074691504,0.002,2954.1,2952.9,0.001]
[1766074691697,0.546,2954.0,2953.0,1.1974]
[1766074692015,0.546,2954.0,2953.1,2.9312]
[1766074692194,3.93130483,2954.0,2952.9,0.001]
[1766074692397,0.39333048,2953.9,2952.9,0.001]
[1766074692800,0.39333048,2953.9,2953.0,2.8772]
[1766074693004,0.546,2953.8,2953.0,2.8772]
[1766074693400,0.546,2953.8,2953.0,1.2116]
[1766074693714,0.546,2953.8,2952.9,2.8782]
[1766074694520,3.38558418,2953.7,2952.9,0.001]
[1766074694839,0.46438023,2953.6,2952.9,0.001]
[1766074694998,0.72355486,2953.5,2952.9,0.001]
[1766074695992,0.546,2953.4,2952.9,0.001]
[1766074696421,3.93203384,2953.4,2952.5,2.8782]
[1766074696617,0.46438023,2953.3,2952.5,2.8782]
[1766074697120,0.071,2964.0,2953.1,1.2116]
[1766074697121,0.09414929,2954.7,2953.1,1.2116]
[1766074697318,3.38495102,2954.3,2953.2,1.6656]
[1766074697519,3.38482072,2954.4,2953.2,2.8772]
[1766074697520,0.546,2954.0,2953.2,2.8772]
[1766074697830,1.01038023,2954.0,2952.9,1.2116]
[1766074698036,1.01038023,2954.0,2952.9,2.8782]
[1766074698530,7.11103958,2954.1,2953.4,1.6656]
[1766074698531,0.002,2954.1,2953.4,1.6656]
[1766074698823,0.546,2954.0,2953.4,2.8772]
[1766074699329,0.002,2954.1,2953.4,2.8772]
[1766074699330,0.002,2954.1,2953.5,2.8772]
[1766074699736,0.002,2954.1,2953.4,0.28772]
[1766074699947,0.548,2954.1,2953.4,0.28772]
[1766074700235,0.002,2954.1,2953.0,0.546]
[1766074700432,0.002,2954.1,2953.5,1.6656]
[1766074700627,0.002,2954.1,2953.6,1.2116]
[1766074700793,0.002,2954.1,2953.5,1.6656]
[1766074700991,0.002,2954.1,2953.5,2.8772]
[1766074701730,0.002,2954.1,2953.5,0.28772]
[1766074701937,0.002,2954.1,2953.3,0.46438023]
[1766074702503,0.002,2954.1,2953.3,2.8772]
[1766074702720,0.002,2954.1,2953.3,0.46438023]
[1766074703040,0.002,2954.1,2953.5,2.8772]
[1766074703206,0.002,2954.1,2953.3,6.77208538]
[1766074703410,0.546,2954.7,2953.6,2.8772]
[1766074703636,0.002,2955.3,2954.2,1.6656]
[1766074703801,0.002,2955.3,2954.7,1.2116]
[1766074703997,0.002,2955.3,2954.4,1.2116]
[1766074704203,0.002,2955.3,2954.4,2.8772]
[1766074704399,0.546,2955.2,2954.1,2.8772]
[1766074704603,0.546,2955.2,2953.7,1.2116]
[1766074704799,0.546,2955.2,2953.7,2.8772]
[1766074705036,0.64014929,2955.2,2953.7,2.8772]
[1766074705200,0.405504,2955.1,2953.7,2.8772]
[1766074705399,0.46438023,2955.0,2953.6,0.546]
[1766074705701,0.96071398,2954.9,2953.4,0.46438023]
[1766074705898,0.96071398,2954.9,2953.6,1.2116]
[1766074706117,0.96071398,2954.9,2953.6,2.8772]
[1766074706568,0.002,2954.1,2953.2,1.01038023]
[1766074706768,0.002,2954.1,2953.4,2.8772]
[1766074706952,0.002,2954.1,2953.5,3.16492]
[1766074707357,0.002,2954.1,2953.2,3.88758023]
[1766074707567,0.002,2954.1,2953.3,2.8772]
[1766074707753,0.002,2954.1,2953.3,0.46438023]
[1766074707958,0.002,2954.1,2953.4,2.8772]
[1766074708298,0.002,2954.1,2953.3,3.85040753]
[1766074708443,0.546,2954.5,2953.5,3.38579021]
[1766074708645,0.546,2954.5,2953.6,1.6656]
[1766074708875,0.546,2954.7,2954.0,1.6656]
[1766074709169,0.546,2955.1,2954.3,1.6656]
[1766074709373,0.546,2955.1,2954.3,2.8772]
[1766074709577,0.46638023,2955.3,2954.1,0.405504]
[1766074709746,0.546,2955.2,2954.6,2.8772]
[1766074709945,0.002,2955.3,2954.6,2.8772]
[1766074710274,0.38699209,2955.3,2954.6,2.8772]
[1766074710474,0.38699209,2955.3,2954.1,0.546]
[1766074710475,0.002,2955.3,2954.2,0.86988423]
[1766074710648,0.002,2955.3,2954.4,1.6656]
[1766074710976,0.002,2955.3,2954.5,2.8772]
[1766074711271,0.002,2955.3,2954.2,1.01038023]
[1766074711472,0.002,2955.3,2954.2,3.88758023]
[1766074711674,0.002,2955.3,2954.3,0.38875802]
[1766074711877,0.002,2955.3,2954.3,2.8772]
[1766074712573,0.545,2955.2,2954.0,0.545]
[1766074712762,0.002,2955.3,2954.4,1.2116]
[1766074712963,0.002,2955.3,2954.0,0.545]
[1766074713170,0.545,2955.2,2954.1,1.6656]
[1766074713370,0.545,2955.2,2954.2,2.8772]
[1766074713989,0.002,2955.3,2954.0,3.4222]
[1766074714162,0.545,2955.1,2954.0,3.4222]
[1766074714359,0.545,2955.1,2953.5,0.46438023]
[1766074714571,3.38409475,2955.0,2953.8,1.6656]
[1766074714772,6.7681895,2955.0,2953.9,2.8772]
[1766074714978,3.38409475,2955.0,2953.9,2.8772]
[1766074715286,0.545,2954.9,2953.9,2.8772]
[1766074715488,0.545,2954.8,2953.9,2.8772]
[1766074715649,0.545,2954.8,2953.5,1.00938023]
[1766074716386,0.545,2954.8,2953.5,1.39803825]
[1766074716544,3.38443835,2954.7,2953.6,0.46438023]
[1766074717266,6.7688767,2954.7,2953.5,3.26585802]
[1766074717450,6.7688767,2954.7,2953.5,2.8772]
[1766074718000,0.46438023,2954.6,2953.1,2.8782]
[1766074718150,0.46438023,2954.6,2953.2,2.8772]
[1766074718653,0.46438023,2954.4,2953.2,2.8772]
[1766074719010,1.26837151,2954.3,2953.3,0.28782]
[1766074720879,0.46438023,2954.2,2953.1,0.001]
[1766074721078,0.405504,2953.8,2952.5,0.001]
[1766074721296,0.545,2953.7,2952.6,2.8772]
[1766074721511,0.545,2953.7,2952.6,3.16502]
[1766074721805,0.545,2953.6,2952.5,0.001]
[1766074722665,6.77231476,2953.2,2952.0,0.001]
[1766074722870,0.545,2953.1,2952.0,0.001]
[1766074723377,0.545,2953.0,2952.0,0.001]
[1766074724900,3.3865014,2952.9,2952.0,0.001]
[1766074725098,0.39315014,2952.8,2952.0,0.001]
[1766074726201,0.545,2953.0,2952.0,0.001]
[1766074726202,0.46438023,2952.9,2952.0,0.001]
[1766074726599,0.545,2953.0,2952.0,0.001]
[1766074727290,0.546,2952.9,2952.1,2.8433]
[1766074727492,0.46438023,2953.4,2952.1,2.8433]
[1766074727686,10.7149382,2953.8,2952.3,2.8433]
[1766074727874,10.7149382,2953.8,2952.0,2.8443]
[1766074727875,0.46438023,2953.4,2952.0,2.8443]
[1766074728073,0.405504,2953.3,2952.0,2.8443]
[1766074728307,0.546,2953.2,2952.0,2.8443]
[1766074728836,0.46438023,2953.4,2952.1,2.8433]
[1766074729042,3.38546956,2953.8,2952.2,0.28443]
[1766074729043,0.546,2953.3,2952.2,0.28443]
[1766074729217,0.46438023,2953.2,2952.1,3.3893]
[1766074730630,0.46438023,2953.2,2952.1,2.8433]
[1766074730820,0.46438023,2953.2,2952.0,0.001]
[1766074731027,0.546,2953.1,2952.0,0.001]
[1766074731535,0.546,2953.0,2952.0,2.8443]
[1766074731906,1.3242901,2953.0,2952.0,3.52220592]
[1766074732106,0.7782901,2953.0,2952.0,3.52220592]
[1766074732307,0.546,2952.9,2952.0,3.52220592]
[1766074734122,0.546,2952.9,2952.1,2.8433]
[1766074734438,0.46438023,2953.1,2952.0,0.67890592]
[1766074734633,0.546,2953.0,2952.2,1.1233]
[1766074734835,3.85042321,2953.3,2952.1,1.72]
[1766074735039,0.546,2953.0,2952.2,2.8433]
[1766074735528,0.546,2953.0,2952.1,0.57864325]
[1766074735728,0.46438023,2952.9,2952.0,0.67890592]
[1766074735938,0.46438023,2952.9,2952.0,3.52220592]
[1766074736152,0.46438023,2952.9,2952.0,2.8443]
[1766074736388,0.46438023,2952.9,2952.0,0.001]
[1766074736551,0.46438023,2952.9,2951.8,0.001]
[1766074737780,0.46438023,2952.8,2951.8,2.8443]
[1766074738580,0.46438023,2952.8,2951.8,0.001]
[1766074738784,0.72374964,2952.7,2951.8,0.001]
[1766074739490,0.72374964,2952.7,2951.4,1.1243]
[1766074739660,0.72374964,2952.7,2950.8,0.001]
[1766074739661,0.86988423,2952.1,2950.8,0.001]
[1766074739983,0.49965329,2951.9,2950.5,2.8433]
[1766074740180,0.49965329,2951.9,2950.5,3.12763]
[1766074740358,0.86988423,2951.6,2950.1,2.8433]
[1766074740558,0.405504,2951.4,2949.0,0.09414929]
[1766074740772,0.46438023,2951.1,2949.6,3.39028828]
[1766074740968,0.546,2951.0,2949.6,1.1398]
[1766074741173,0.546,2951.0,2949.7,0.49945404]
[1766074741489,0.49965329,2950.9,2949.6,2.8422]
[1766074741777,0.46438023,2950.7,2949.6,2.8422]
[1766074741980,0.86988423,2950.9,2949.6,6.2324463]
[1766074742188,0.46438023,2950.8,2949.2,1.1398]
[1766074742347,9.14575663,2951.2,2949.4,3.39049149]
[1766074742348,0.546,2950.7,2949.4,3.39049149]
[1766074742547,0.546,2950.7,2949.5,3.72940442]
[1766074742745,0.546,2950.7,2949.5,3.18124915]
[1766074743054,0.405504,2950.5,2949.0,1.1398]
[1766074743268,0.09414929,2949.7,2947.5,6.78531214]
[1766074743456,0.09414929,2949.9,2947.4,0.66572859]
[1766074743457,0.405504,2949.2,2947.7,2.8422]
[1766074743656,0.46438023,2948.6,2947.4,0.66572859]
[1766074743867,0.546,2948.5,2946.9,3.3882]
[1766074744053,0.546,2948.5,2947.1,2.8422]
[1766074744256,0.46438023,2948.3,2946.8,2.98178071]
[1766074744451,3.39076971,2949.2,2947.7,3.39247154]
[1766074744657,0.33907697,2949.1,2947.9,2.8422]
[1766074744973,9.23990592,2950.1,2947.8,0.96272417]
[1766074745150,0.09414929,2949.8,2947.8,0.96272417]
[1766074745357,0.46438023,2949.6,2947.8,0.96272417]
[1766074745552,9.14575663,2949.2,2947.8,3.80492417]
[1766074745783,9.14575663,2949.2,2947.2,1.01038023]
[1766074745784,1.46057566,2949.1,2947.2,0.546]
[1766074745984,1.46057566,2949.1,2947.9,2.8422]
[1766074746483,0.09414929,2950.2,2947.9,2.8422]
[1766074746787,0.405504,2949.9,2947.9,0.46438023]
[1766074746989,0.64014929,2949.8,2948.0,2.8422]
[1766074747156,0.09414929,2950.0,2947.8,10.17707576]
[1766074747488,0.951504,2949.9,2947.9,1.7024]
[1766074747685,0.546,2949.8,2948.4,3.39167005]
[1766074747887,0.46438023,2950.0,2948.9,2.8422]
[1766074748186,3.38875169,2951.0,2948.4,10.17501015]
[1766074748187,9.14575663,2950.6,2948.8,0.546]
[1766074748391,0.546,2950.5,2949.2,1.1398]
[1766074748590,0.546,2950.5,2949.2,2.8422]
[1766074748888,9.14575663,2950.1,2948.3,3.39174368]
[1766074749061,1.10452952,2950.0,2948.3,6.23394368]
[1766074749258,0.405504,2949.9,2948.3,2.8422]
[1766074749456,0.405504,2949.9,2948.0,0.546]
[1766074749676,0.46438023,2949.7,2948.3,2.8422]
[1766074749870,0.38544406,2949.6,2948.5,2.8422]
[1766074750087,0.546,2949.5,2948.2,6.23407073]
[1766074750403,0.546,2949.4,2948.2,2.8422]
[1766074750910,0.38544406,2949.6,2948.3,2.8422]
[1766074751063,0.546,2949.5,2948.1,1.7024]
[1766074751266,0.46438023,2949.9,2948.4,6.23378976]
[1766074751479,0.546,2949.8,2948.4,3.39158976]
[1766074751809,0.46438023,2949.9,2948.6,2.8422]
[1766074751810,0.546,2949.7,2948.6,2.8422]
[1766074751965,0.46438023,2949.9,2948.6,2.8422]
[1766074752167,0.002,2950.0,2949.0,1.1398]
[1766074752404,0.002,2950.0,2949.3,1.7024]
[1766074752605,9.14575663,2949.8,2948.3,2.82]
[1766074752769,1.01038023,2949.7,2948.3,0.299034]
[1766074752970,1.00958023,2949.7,2948.3,0.299034]
[1766074753170,1.10372952,2949.7,2948.2,2.82]
[1766074753601,1.00958023,2949.7,2948.2,2.82]
[1766074753804,0.46438023,2949.5,2948.3,2.82]
[1766074754371,9.14575663,2950.3,2948.7,1.6792]
[1766074754602,0.546,2949.9,2948.8,1.1408]
[1766074754799,1.01038023,2949.9,2948.6,1.6792]
[1766074755140,0.77920541,2949.8,2948.8,2.82]
[1766074755273,0.546,2949.8,2948.8,2.82]
[1766074755774,3.93616086,2949.8,2948.4,3.39167005]
[1766074756391,7.32632172,2949.8,2948.4,2.82]
[1766074758438,0.46438023,2949.7,2948.4,2.82]
[1766074758940,0.46438023,2949.7,2948.4,6.21161361]
[1766074759122,0.546,2949.7,2948.8,2.82]
[1766074759651,0.46438023,2949.9,2948.8,2.82]
[1766074759816,0.002,2950.0,2948.9,1.1408]
[1766074760016,0.002,2950.0,2949.0,4.158322]
[1766074760601,0.002,2950.0,2949.1,2.82]
[1766074760808,0.002,2950.0,2949.2,0.0339075]
[1766074761009,0.546,2950.6,2949.4,1.1408]
[1766074761315,0.46438023,2950.8,2949.6,2.82]
[1766074761517,0.38532325,2950.7,2949.4,0.546]
[1766074761717,3.39046201,2951.2,2949.9,1.6792]
[1766074761949,0.546,2951.1,2949.8,0.546]
[1766074762111,0.546,2951.1,2949.9,2.82]
[1766074762445,0.546,2951.1,2949.8,3.93604943]
[1766074762646,0.546,2951.1,2949.9,2.82]
[1766074762933,0.546,2951.1,2949.9,3.49560494]
[1766074763238,0.002,2951.2,2949.9,2.82]
[1766074763462,0.002,2951.2,2949.8,0.546]
[1766074763463,0.64014929,2951.1,2949.8,0.546]
[1766074763807,0.64014929,2951.1,2949.5,2.82]
[1766074763808,0.46438023,2950.9,2949.5,2.82]
[1766074764004,0.46438023,2950.9,2949.5,6.21040206]
[1766074764209,0.72417438,2950.8,2949.5,4.06604227]
[1766074764410,0.72417438,2950.8,2949.7,1.1408]
[1766074764624,0.72417438,2950.8,2949.7,2.82]
[1766074765043,0.72417438,2950.8,2949.8,0.001]
[1766074765451,0.72417438,2950.8,2949.9,2.82]
[1766074766049,0.002,2951.1,2950.0,1.6792]
[1766074766348,0.002,2951.1,2950.6,1.6792]
[1766074766559,0.002,2951.1,2950.4,0.546]
[1766074767352,0.002,2952.4,2950.9,1.1408]
[1766074767647,3.93318964,2952.3,2951.1,2.82]
[1766074767848,0.46438023,2952.0,2951.1,2.82]
[1766074768223,6.77483824,2952.1,2950.8,0.546]
[1766074768418,6.77483824,2952.1,2950.8,3.366]
[1766074768620,9.15713529,2950.9,2948.7,1.6792]
[1766074768823,0.86988423,2950.1,2948.9,1.6792]
[1766074769126,0.405504,2949.9,2948.7,1.1408]
[1766074769352,0.546,2949.8,2948.7,1.1408]
[1766074769527,0.546,2949.8,2948.7,5.15331753]
[1766074769860,0.546,2949.8,2948.8,2.82]
[1766074771050,0.546,2949.7,2948.8,2.82]
[1766074771255,1.01038023,2949.7,2948.6,0.001]
[1766074771818,0.46438023,2949.7,2948.7,2.82]
[1766074772022,0.546,2949.6,2948.7,1.6792]
[1766074772250,0.405504,2950.4,2948.8,2.82]
[1766074772436,0.546,2950.3,2948.8,2.82]
[1766074772643,0.546,2950.2,2948.8,2.82]
[1766074773656,0.546,2950.2,2948.6,0.001]
[1766074773835,0.546,2950.2,2948.6,0.2831]
[1766074774043,10.1691468,2950.1,2948.6,0.2831]
[1766074774239,10.1691468,2950.1,2948.0,0.001]
[1766074774240,13.5588624,2950.1,2948.0,0.001]
[1766074774440,0.86988423,2949.6,2948.0,0.001]
[1766074774767,0.405504,2949.4,2947.6,0.001]
[1766074775135,0.405504,2949.2,2947.7,2.82]
[1766074775331,0.9968723,2950.0,2947.7,1.6792]
[1766074775528,0.9968723,2950.0,2948.0,1.1408]
[1766074775529,0.405504,2949.8,2948.0,1.1408]
[1766074775943,0.405504,2949.6,2948.0,1.1408]
[1766074776159,0.86988423,2949.6,2947.9,1.6792]
[1766074776353,0.405504,2949.4,2947.9,1.6792]
[1766074776554,0.405504,2949.4,2947.8,0.22262]
[1766074776940,0.405504,2949.2,2947.8,0.22262]
[1766074777356,0.405504,2949.2,2947.8,2e-05]